fUST/lending_fUST_20250705
["ID","MTS","AMOUNT","RATE_DAILY","PERIOD"]
[369686212,1751698277307,-1000.0,0.00022,2]
[369686213,1751698277317,-151.0,0.00022,7]
[369686214,1751698277326,-151.0,0.00022,7]
[369686215,1751698277335,-151.0,0.00022,7]
[369686216,1751698277344,-151.0,0.00022,7]
[369686217,1751698277354,-151.0,0.00022,7]
[369686218,1751698277363,-151.0,0.00022,7]
[369686219,1751698277372,-191.893066,0.00022,7]
[369686220,1751698277382,-191.893066,0.00022,7]
[369686221,1751698277391,-1000.0,0.00022,5]
[369686222,1751698277400,-151.0,0.00022,7]
[369686223,1751698277410,-151.0,0.00022,7]
[369686224,1751698277419,-151.0,0.00022,7]
[369686225,1751698277562,-174.845258,0.00022,14]
[369686226,1751698277575,-160.0,0.00022,7]
[369686227,1751698277587,-220.320668,0.00022,7]
[369686228,1751698277596,-220.320668,0.00022,7]
[369686229,1751698277605,-160.0,0.00022,7]
[369686230,1751698277615,-151.0,0.00022,7]
[369686231,1751698277624,-848.02350475,0.00022,7]
[369686232,1751698277634,-1137.48,0.00022028,3]
[369686233,1751698277643,-460.0,0.00022036,2]
[369686234,1751698277652,-369.74,0.00022036,2]
[369686235,1751698277662,-1556.76,0.00022036,2]
[369686236,1751698277672,-1032.0,0.00022036,2]
[369686237,1751698277681,-296.309193,0.00022036,7]
[369686238,1751698277690,-296.309193,0.00022036,7]
[369686239,1751698277700,-193.77704936,0.00022036,2]
[369686240,1751698277710,-807.65,0.00022036,2]
[369686241,1751698277719,-190.234989,0.00022036,7]
[369686242,1751698277728,-190.234989,0.00022036,7]
[369686243,1751698277738,-750.64,0.00022036,2]
[369686244,1751698277748,-561.54,0.00022036,2]
[369686245,1751698277758,-460.0,0.00022036,2]
[369686246,1751698277767,-3198.94,0.00022036,2]
[369686247,1751698277776,-1225.5,0.00022036,2]
[369686248,1751698277786,-460.0,0.00022037,2]
[369686249,1751698277795,-460.0,0.00022037,2]
[369686250,1751698277804,-499.44,0.00022037,2]
[369686251,1751698277813,-546.38842411,0.00022037,2]
[369686252,1751698277824,-538.52,0.00022037,2]
[369686253,1751698277834,-460.0,0.00022037,2]
[369686254,1751698277849,-460.0,0.00022037,2]
[369686255,1751698277862,-555.9,0.00022037,2]
[369686256,1751698277872,-206.21028362,0.00022055,2]
[369686257,1751698277881,-151.0,0.00022069,7]
[369686258,1751698277891,-158.333332,0.00022083,2]
[369686259,1751698277901,-168.0,0.00022088,2]
[369686260,1751698277910,-500.0,0.00022099,10]
[369686261,1751698277920,-500.0,0.00022099,10]
[369686262,1751698277930,-500.0,0.00022099,10]
[369686263,1751698277939,-500.0,0.00022099,10]
[369686264,1751698277948,-500.0,0.00022099,10]
[369686265,1751698277957,-500.37527667,0.00022099,10]
[369686266,1751698277967,-125324.28352509,0.000221,5]
[369686267,1751698277977,-151.0,0.000221,7]
[369686268,1751698277986,-151.0,0.000221,7]
[369686269,1751698277995,-151.0,0.000221,7]
[369686270,1751698278004,-151.0,0.000221,7]
[369686271,1751698278014,-151.0,0.000221,7]
[369686272,1751698278023,-151.0,0.000221,7]
[369686273,1751698278033,-151.0,0.000221,7]
[369686274,1751698278042,-151.0,0.000221,7]
[369686275,1751698278052,-156.05328,0.000221,7]
[369686276,1751698278062,-156.05328,0.000221,7]
[369686277,1751698278071,-151.0,0.000221,7]
[369686278,1751698278081,-151.0,0.000221,7]
[369686279,1751698278091,-151.0,0.000221,7]
[369686280,1751698278101,-524.9082602,0.000221,10]
[369686281,1751698278111,-848.02350475,0.000221,10]
[369686282,1751698278121,-1137.48,0.00022128,2]
[369686283,1751698278131,-166.666668,0.00022134,2]
[369686284,1751698278141,-582.69,0.00022137,2]
[369686285,1751698278150,-460.0,0.00022138,2]
[369686286,1751698278160,-214.00065714,0.00022141,6]
[369686287,1751698278170,-183.701271,0.00022153,7]
[369686288,1751698278180,-206.21028362,0.00022164,2]
[369686289,1751698278189,-322.22582166,0.00022174,2]
[369686290,1751698278199,-158.333332,0.00022179,2]
[369686291,1751698278209,-166.666668,0.00022186,2]
[369686292,1751698278219,-2308.35,0.00022191,2]
[369686293,1751698278229,-612.49,0.00022191,2]
[369686294,1751698278239,-460.0,0.00022191,2]
[369686295,1751698278249,-1190.77,0.00022191,2]
[369686296,1751698278258,-2277.85,0.00022191,2]
[369686297,1751698278268,-534.23,0.00022191,2]
[369686298,1751698278277,-2848.3,0.00022191,2]
[369686299,1751698278288,-460.0,0.00022191,2]
[369686300,1751698278297,-507.51,0.00022191,2]
[369686301,1751698278305,-1373.0,0.00022191,2]
[369686302,1751698278314,-460.0,0.00022191,2]
[369686303,1751698278323,-1558.56,0.00022191,2]
[369686304,1751698278333,-460.0,0.00022191,2]
[369686305,1751698278342,-1336.11,0.00022191,2]
[369686306,1751698278351,-687.04,0.00022191,2]
[369686307,1751698278361,-2406.36,0.00022191,2]
[369686308,1751698278381,-485.9,0.0002221,2]
[369686309,1751698278398,-460.0,0.0002221,2]
[369686310,1751698278415,-460.0,0.0002221,2]
[369686311,1751698278433,-460.0,0.0002221,2]
[369686312,1751698278450,-1940.46,0.0002221,2]
[369686313,1751698278469,-460.0,0.0002221,2]
[369686314,1751698278488,-473.36,0.0002221,2]
[369686315,1751698278507,-692.13,0.0002221,2]
[369686316,1751698278523,-341.82379665,0.0002221,2]
[369686317,1751698278539,-486.68,0.0002221,2]
[369686318,1751698278557,-460.0,0.00022211,2]
[369686319,1751698278575,-223.71053897,0.00022211,2]
[369686320,1751698278595,-460.0,0.00022211,2]
[369686321,1751698278608,-460.0,0.00022211,2]
[369686322,1751698278622,-460.0,0.00022211,2]
[369686323,1751698278641,-3576.59,0.00022211,2]
[369686324,1751698278654,-501.28,0.00022211,2]
[369686325,1751698278670,-964.26,0.00022211,2]
[369686326,1751698278683,-1022.44,0.00022211,2]
[369686327,1751698278699,-1070.75,0.00022211,2]
[369686328,1751698278718,-1137.48,0.00022228,3]
[369686329,1751698278734,-151.0,0.00022236,7]
[369686330,1751698278750,-151.0,0.00022236,7]
[369686331,1751698278765,-158.333332,0.00022275,2]
[369686332,1751698278781,-500.0,0.00022299,10]
[369686333,1751698278796,-500.0,0.00022299,10]
[369686334,1751698278810,-500.0,0.00022299,10]
[369686335,1751698278825,-500.0,0.00022299,10]
[369686336,1751698278840,-500.0,0.00022299,10]
[369686337,1751698278854,-21003.25730103,0.000223,2]
[369686338,1751698278867,-151.0,0.000223,7]
[369686339,1751698278881,-151.0,0.000223,7]
[369686340,1751698278895,-151.0,0.000223,7]
[369686341,1751698278909,-208.933209,0.000223,7]
[369686342,1751698278922,-151.0,0.000223,7]
[369686343,1751698278936,-151.0,0.000223,7]
[369686344,1751698278949,-1076.059421,0.000223,7]
[369686345,1751698278962,-655.54338262,0.000223,2]
[369686346,1751698278976,-151.0,0.000223,7]
[369686347,1751698278990,-151.0,0.000223,7]
[369686348,1751698279004,-281.68046082,0.000223,2]
[369686349,1751698279017,-238.74698166,0.0002231,2]
[369686350,1751698279031,-1556.76,0.0002231,2]
[369686351,1751698279045,-1032.0,0.0002231,2]
[369686352,1751698279059,-807.65,0.0002231,2]
[369686353,1751698279073,-750.64,0.0002231,2]
[369686354,1751698279087,-561.54,0.0002231,2]
[369686355,1751698279100,-460.0,0.0002231,2]
[369686356,1751698279114,-3198.94,0.0002231,2]
[369686357,1751698279128,-1225.5,0.0002231,2]
[369686358,1751698279143,-460.0,0.00022311,2]
[369686359,1751698279157,-460.0,0.00022311,2]
[369686360,1751698279171,-499.44,0.00022311,2]
[369686361,1751698279184,-538.52,0.00022311,2]
[369686362,1751698279194,-460.0,0.00022311,2]
[369686363,1751698279204,-460.0,0.00022311,2]
[369686364,1751698279214,-555.9,0.00022311,2]
[369686365,1751698279225,-223.0315306,0.00022311,2]
[369686366,1751698279235,-214.00065714,0.00022314,7]
[369686367,1751698279246,-1137.48,0.00022328,6]
[369686368,1751698279256,-166.666668,0.00022367,2]
[369686369,1751698279265,-158.333332,0.00022371,2]
[369686370,1751698279275,-150.0,0.00022373,2]
[369686371,1751698279284,-500.0,0.00022399,10]
[369686372,1751698279294,-500.0,0.00022399,10]
[369686373,1751698279304,-500.0,0.00022399,10]
[369686374,1751698279314,-500.0,0.00022399,10]
[369686375,1751698279324,-500.0,0.00022399,10]
[369686376,1751698279334,-500.0,0.00022399,10]
[369686377,1751698279344,-151.0,0.00022399,7]
[369686378,1751698279354,-191.893066,0.00022399,7]
[369686379,1751698279363,-191.893066,0.00022399,7]
[369686380,1751698279373,-151.0,0.00022399,7]
[369686381,1751698279383,-151.0,0.00022399,7]
[369686382,1751698279392,-151.0,0.00022399,7]
[369686383,1751698279402,-2000.0,0.000224,2]
[369686384,1751698279412,-100000.0,0.000224,2]
[369686385,1751698279421,-94700.02144351,0.000224,2]
[369686386,1751698279781,-3606.3972182,0.000224,2]
[369686387,1751698279794,-621.77222602,0.000224,2]
[369686388,1751698279805,-474.14796683,0.000224,2]
[369686389,1751698279961,-460.0,0.00019178,2]
[369686390,1751698279971,-460.0,0.00019178,2]
[369686391,1751698279981,-460.0,0.00019452,2]
[369686392,1751698279990,-460.0,0.00019452,2]
[369686393,1751698279999,-298.7263213,0.00019726,2]
[369686394,1751698280011,-362.8336787,0.00019726,2]
[369686395,1751698280021,-460.0,0.00019726,2]
[369686396,1751698280030,-390.11213689,0.00019726,2]
[369686397,1751698280041,-70.82475947,0.00019726,2]
[369686398,1751698280050,-460.0,0.00019744,2]
[369686399,1751698280060,-661.56,0.0002,2]
[369686400,1751698280069,-460.0,0.0002,2]
[369686401,1751698280079,-460.0,0.00020018,2]
[369686402,1751698280088,-194.40499493,0.00020115,2]
[369686403,1751698280097,-661.56,0.00020273,2]
[369686404,1751698280106,-661.56,0.00020547,2]
[369686405,1751698280116,-460.0,0.00020566,2]
[369686406,1751698280125,-661.56,0.00020821,2]
[369686407,1751698280135,-460.0,0.0002084,2]
[369686408,1751698280144,-341.19713924,0.00021095,2]
[369686409,1751698280156,-320.36286076,0.00021095,2]
[369686410,1751698280165,-211.27785724,0.00021114,2]
[369686411,1751698280288,-460.0,0.00019178,2]
[369686412,1751698280297,-460.0,0.00019297,2]
[369686413,1751698280307,-460.0,0.00019452,2]
[369686414,1751698280316,-248.72214276,0.00021114,2]
[369686415,1751698280327,-407.396,0.00021216,2]
[369686416,1751698280337,-661.56,0.00021369,2]
[369686417,1751698280356,-460.0,0.00021388,2]
[369686418,1751698280367,-661.56,0.00021643,2]
[369686419,1751698280377,-460.0,0.00021662,2]
[369686420,1751698280388,-661.56,0.00021917,2]
[369686421,1751698280399,-460.0,0.00021936,2]
[369686422,1751698280409,-661.56,0.00022191,2]
[369686423,1751698280419,-460.0,0.0002221,2]
[369686424,1751698280428,-4870.03686602,0.000224,2]
[369686425,1751698280614,-460.0,0.00019178,2]
[369686426,1751698280624,-460.0,0.00019196,2]
[369686427,1751698280634,-460.0,0.00019452,2]
[369686428,1751698280643,-988.04861712,0.000224,2]
[369686429,1751698280652,-151.0,0.000224,7]
[369686430,1751698280661,-151.0,0.000224,7]
[369686431,1751698280671,-151.0,0.000224,7]
[369686432,1751698280681,-151.0,0.000224,7]
[369686433,1751698280690,-264.661992,0.000224,7]
[369686434,1751698280700,-151.0,0.000224,7]
[369686435,1751698280709,-151.0,0.000224,7]
[369686436,1751698280719,-151.0,0.000224,7]
[369686437,1751698280728,-151.0,0.000224,7]
[369686438,1751698280737,-151.0,0.000224,7]
[369686439,1751698280747,-151.0,0.000224,7]
[369686440,1751698280757,-151.0,0.000224,7]
[369686441,1751698280766,-208.076686,0.000224,7]
[369686442,1751698280776,-208.076686,0.000224,7]
[369686443,1751698280785,-151.0,0.000224,7]
[369686444,1751698280795,-291.927488,0.000224,7]
[369686445,1751698280805,-156.274456,0.000224,7]
[369686446,1751698280814,-151.0,0.000224,7]
[369686447,1751698280824,-154.310406,0.000224,7]
[369686448,1751698280834,-151.0,0.000224,7]
[369686449,1751698280843,-151.0,0.000224,7]
[369686450,1751698280852,-183.303411,0.000224,2]
[369686451,1751698280862,-183.303411,0.000224,2]
[369686452,1751698280872,-151.0,0.000224,7]
[369686453,1751698280881,-151.0,0.000224,7]
[369686454,1751698280891,-151.0,0.000224,7]
[369686455,1751698280901,-188.384998,0.000224,7]
[369686456,1751698280910,-151.0,0.000224,7]
[369686457,1751698280920,-188.384998,0.000224,7]
[369686458,1751698280929,-151.0,0.000224,7]
[369686459,1751698280939,-151.0,0.000224,7]
[369686460,1751698280948,-151.0,0.000224,7]
[369686461,1751698280957,-161.92,0.000224,31]
[369686462,1751698280967,-161.92,0.000224,31]
[369686463,1751698280976,-161.92,0.000224,31]
[369686464,1751698280986,-161.92,0.000224,31]
[369686465,1751698280996,-44.32627715,0.000224,31]
[369686466,1751698281009,-117.59372285,0.000224,31]
[369686467,1751698281018,-161.92,0.000224,31]
[369686468,1751698281027,-161.92,0.000224,31]
[369686469,1751698281037,-156.05328,0.000224,7]
[369686470,1751698281046,-156.05328,0.000224,7]
[369686471,1751698281056,-151.0,0.000224,7]
[369686472,1751698281065,-151.0,0.000224,7]
[369686473,1751698281076,-200.75884,0.000224,7]
[369686474,1751698281085,-200.75884,0.000224,7]
[369686475,1751698281094,-151.0,0.000224,7]
[369686476,1751698281104,-296.309193,0.000224,7]
[369686477,1751698281114,-175.63284415,0.000224,7]
[369686478,1751698281126,-120.67634885,0.000224,7]
[369686479,1751698281136,-190.234989,0.000224,7]
[369686480,1751698281145,-190.234989,0.000224,7]
[369686481,1751698281155,-220.320668,0.000224,7]
[369686482,1751698281165,-220.320668,0.000224,7]
[369686483,1751698281174,-34.44572469,0.0002241,7]
[369686516,1751698348373,-166.0,0.0001816,2]
[369686522,1751698527077,1000.0,0.00027,120]
[369686523,1751698527947,1000.0,0.00027,120]
[369686524,1751698528747,1000.0,0.00027,120]
[369686525,1751698529693,1000.0,0.00027,120]
[369686527,1751698784436,235.570596,0.0002461,60]
[369686531,1751699008100,-184.42093837,0.00018095,2]
[369686532,1751699013967,-168.75269774,0.00018095,2]
[369686534,1751699016604,-156.31850739,0.00018095,2]
[369686535,1751699017203,519.17363611,0.00018,2]
[369686536,1751699018202,-298.60591958,0.00018095,2]
[369686537,1751699020737,-262.74198189,0.00018095,2]
[369686538,1751699032892,717.66640886,0.00018,2]
[369686539,1751699072820,-163.41782826,0.00018094,2]
[369686540,1751699079020,-136.58217174,0.00018094,2]
[369686541,1751699079045,-31.18938341,0.00018095,2]
[369686542,1751699084708,-154.24682074,0.00018095,2]
[369686543,1751699092420,-152.92079196,0.00018095,2]
[369686544,1751699094892,-196.74389267,0.00018095,2]
[369686545,1751699098861,-201.49934155,0.00018095,2]
[369686546,1751699101077,-371.29115437,0.00018095,2]
[369686547,1751699104485,-272.93370198,0.00018094,2]
[369686548,1751699107743,-27.06629802,0.00018094,2]
[369686549,1751699107766,-225.34716493,0.00018094,2]
[369686550,1751699121451,344.95768716,0.00018,2]
[369686568,1751699268467,-171.20553137,0.00018094,2]
[369686578,1751699358491,-164.25080922,0.00018094,2]
[369686579,1751699363387,164.25080922,0.00018,2]
[369686613,1751699432595,-264.6913177,0.00018094,2]
[369686614,1751699432607,-935.3086823,0.00018094,2]
[369686615,1751699432617,-1200.0,0.00018094,2]
[369686616,1751699432627,-8127.86414742,0.00018095,2]
[369686642,1751699438518,-5542.67527051,0.00018095,2]
[369686643,1751699438530,-957.93889132,0.0001816,2]
[369686644,1751699438541,-438.93182612,0.00019073,2]
[369686645,1751699438550,-162.92,0.00019086,3]
[369686646,1751699438560,-488.78,0.00019086,3]
[369686647,1751699438570,-409.52554412,0.00019095,2]
[369686648,1751699438580,-30710.10690193,0.00019096,2]
[369686649,1751699438591,-339289.89309807,0.00019096,2]
[369686650,1751699438601,-502.45024307,0.00019173,2]
[369686651,1751699438610,-500.0,0.00019173,2]
[369686652,1751699438620,-500.0,0.00019173,2]
[369686653,1751699438630,-502.67715324,0.00019173,2]
[369686654,1751699438639,-500.0,0.00019173,2]
[369686655,1751699438648,-502.81107151,0.00019173,2]
[369686656,1751699438657,-500.0,0.00019173,2]
[369686657,1751699438666,-503.50338805,0.00019173,2]
[369686658,1751699438676,-500.0,0.00019173,2]
[369686659,1751699438685,-500.0,0.00019173,2]
[369686661,1751699438694,-500.0,0.00019173,2]
[369686663,1751699438703,-500.0,0.00019173,2]
[369686665,1751699438713,-500.0,0.00019173,2]
[369686667,1751699438722,-500.0,0.00019173,2]
[369686669,1751699438731,-501.17911387,0.00019173,2]
[369686670,1751699438742,-500.0,0.00019173,2]
[369686671,1751699438752,-155.0,0.00019177,2]
[369686672,1751699438761,-484.81939374,0.00019177,2]
[369686673,1751699438770,-500.0,0.00019177,2]
[369686674,1751699438780,-500.0,0.00019177,2]
[369686675,1751699438789,-500.0,0.00019177,2]
[369686676,1751699438798,-500.0,0.00019177,2]
[369686677,1751699438807,-512.08451978,0.00019177,2]
[369686678,1751699438817,-500.0,0.00019177,2]
[369686679,1751699438826,-500.0,0.00019177,2]
[369686680,1751699438835,-500.0,0.00019177,2]
[369686681,1751699438845,-500.0,0.00019177,2]
[369686682,1751699438855,-500.0,0.00019177,2]
[369686683,1751699438864,-500.0,0.00019177,2]
[369686684,1751699438874,-500.0,0.00019177,2]
[369686685,1751699438884,-500.0,0.00019177,2]
[369686686,1751699438893,-500.0,0.00019177,2]
[369686687,1751699438902,-500.0,0.00019177,2]
[369686688,1751699438912,-500.0,0.00019177,2]
[369686689,1751699438921,-500.0,0.00019177,2]
[369686690,1751699438931,-400.56450816,0.00019177,2]
[369686691,1751699438940,-500.0,0.00019177,2]
[369686692,1751699438950,-500.0,0.00019177,2]
[369686693,1751699438959,-500.0,0.00019177,2]
[369686694,1751699438969,-500.0,0.00019177,2]
[369686695,1751699438978,-500.0,0.00019177,2]
[369686696,1751699438988,-500.0,0.00019177,2]
[369686697,1751699438998,-500.0,0.00019177,2]
[369686698,1751699439007,-500.0,0.00019177,2]
[369686699,1751699439016,-500.0,0.00019177,2]
[369686700,1751699439026,-500.0,0.00019177,2]
[369686701,1751699439035,-200.0,0.00019177,2]
[369686702,1751699439044,-500.0,0.00019177,2]
[369686703,1751699439053,-460.0,0.00019178,2]
[369686704,1751699439063,-460.0,0.00019178,2]
[369686705,1751699439072,-460.0,0.00019178,2]
[369686706,1751699439081,-460.0,0.00019178,2]
[369686707,1751699439091,-460.0,0.00019178,2]
[369686708,1751699439100,-460.0,0.00019178,2]
[369686709,1751699439109,-460.0,0.00019178,2]
[369686710,1751699439119,-460.0,0.00019178,2]
[369686711,1751699439129,-460.0,0.00019178,2]
[369686712,1751699439138,-460.0,0.00019178,2]
[369686713,1751699439148,-460.0,0.00019178,2]
[369686714,1751699439157,-460.0,0.00019178,2]
[369686715,1751699439166,-460.0,0.00019178,2]
[369686716,1751699439176,-460.0,0.00019178,2]
[369686717,1751699439185,-460.0,0.00019178,2]
[369686718,1751699439197,-460.0,0.00019178,2]
[369686719,1751699439207,-460.0,0.00019178,2]
[369686720,1751699439216,-460.78607591,0.00019178,2]
[369686721,1751699439225,-460.0,0.00019178,2]
[369686722,1751699439235,-1000.0,0.00019178,2]
[369686723,1751699439244,-460.0,0.00019178,2]
[369686724,1751699439253,-460.0,0.00019178,2]
[369686725,1751699439262,-460.0,0.00019178,2]
[369686726,1751699439272,-460.0,0.00019178,2]
[369686727,1751699439281,-460.0,0.00019178,2]
[369686728,1751699439290,-460.0,0.00019178,2]
[369686729,1751699439299,-460.0,0.00019178,2]
[369686730,1751699439309,-460.0,0.00019178,2]
[369686731,1751699439318,-460.0,0.00019178,2]
[369686732,1751699439327,-460.0,0.00019178,2]
[369686733,1751699439337,-460.0,0.00019178,2]
[369686734,1751699439346,-460.0,0.00019178,2]
[369686735,1751699439355,-460.0,0.00019178,2]
[369686736,1751699439365,-460.0,0.00019178,2]
[369686737,1751699439374,-460.0,0.00019178,2]
[369686738,1751699439383,-460.0,0.00019178,2]
[369686739,1751699439392,-460.0,0.00019178,2]
[369686740,1751699439402,-415.2281701,0.00019178,2]
[369686741,1751699439412,-460.6588878,0.00019178,2]
[369686742,1751699439421,-460.0,0.00019178,2]
[369686743,1751699439430,-460.0,0.00019178,2]
[369686744,1751699439440,-460.0,0.00019178,2]
[369686745,1751699439449,-460.0,0.00019178,2]
[369686746,1751699439459,-446.16369837,0.00019178,2]
[369686747,1751699439468,-460.93765989,0.00019178,2]
[369686748,1751699439477,-461.04238087,0.00019178,2]
[369686749,1751699439487,-460.0,0.00019178,2]
[369686750,1751699439495,-460.0,0.00019178,2]
[369686751,1751699439505,-461.32884626,0.00019178,2]
[369686752,1751699439515,-460.0,0.00019178,2]
[369686753,1751699439525,-460.0,0.00019178,2]
[369686754,1751699439535,-460.0,0.00019178,2]
[369686755,1751699439545,-460.0,0.00019178,2]
[369686756,1751699439555,-460.0,0.00019178,2]
[369686757,1751699439564,-205.71144804,0.00019178,2]
[369686758,1751699439574,-460.0,0.00019178,2]
[369686759,1751699439583,-460.0,0.00019178,2]
[369686760,1751699439592,-460.0,0.00019178,2]
[369686761,1751699439601,-460.0,0.00019178,2]
[369686762,1751699439611,-460.0,0.00019178,2]
[369686763,1751699439620,-511.92,0.00019178,2]
[369686764,1751699439629,-460.0,0.00019178,2]
[369686765,1751699439638,-460.0,0.00019178,2]
[369686766,1751699439647,-460.0,0.00019178,2]
[369686767,1751699439665,-460.0,0.00019178,2]
[369686768,1751699439677,-460.70465126,0.00019178,2]
[369686769,1751699439687,-460.0,0.00019178,2]
[369686770,1751699439697,-410.71933552,0.00019178,2]
[369686771,1751699439706,-460.0,0.00019178,2]
[369686772,1751699439716,-460.0,0.00019178,2]
[369686773,1751699439726,-460.0,0.00019178,2]
[369686774,1751699439736,-460.0,0.00019178,2]
[369686775,1751699439745,-460.0,0.00019178,2]
[369686776,1751699439755,-460.0,0.00019178,2]
[369686777,1751699439765,-460.0,0.00019178,2]
[369686778,1751699439775,-460.0,0.00019178,2]
[369686779,1751699439786,-460.0,0.00019178,2]
[369686780,1751699439796,-460.0,0.00019178,2]
[369686781,1751699439806,-242.26350367,0.00019178,2]
[369686782,1751699439816,-460.0,0.00019178,2]
[369686783,1751699439825,-460.0,0.00019178,2]
[369686784,1751699439835,-461.11172727,0.00019178,2]
[369686785,1751699439844,-460.0,0.00019178,2]
[369686786,1751699439854,-461.25801184,0.00019178,2]
[369686787,1751699439864,-460.0,0.00019178,2]
[369686788,1751699439874,-460.0,0.00019178,2]
[369686789,1751699439884,-460.0,0.00019178,2]
[369686790,1751699439894,-460.0,0.00019178,2]
[369686791,1751699439904,-460.0,0.00019178,2]
[369686792,1751699439913,-460.0,0.00019178,2]
[369686793,1751699439923,-433.16174355,0.00019178,2]
[369686794,1751699439933,-460.0,0.00019178,2]
[369686795,1751699439944,-460.0,0.00019178,2]
[369686796,1751699439956,-460.0,0.00019178,2]
[369686797,1751699439968,-460.97857132,0.00019178,2]
[369686798,1751699439979,-460.0,0.00019178,2]
[369686799,1751699439989,-460.0,0.00019178,2]
[369686800,1751699439999,-460.0,0.00019178,2]
[369686801,1751699440008,-460.0,0.00019178,2]
[369686802,1751699440018,-460.0,0.00019178,2]
[369686803,1751699440027,-461.57063369,0.00019178,2]
[369686804,1751699440037,-533.41,0.00019178,2]
[369686805,1751699440046,-460.0,0.00019178,2]
[369686806,1751699440056,-460.0,0.00019178,2]
[369686807,1751699440066,-460.0,0.00019178,2]
[369686808,1751699440076,-406.27480506,0.00019178,2]
[369686809,1751699440085,-461.08217932,0.00019178,2]
[369686810,1751699440094,-460.0,0.00019178,2]
[369686811,1751699440104,-460.0,0.00019178,2]
[369686812,1751699440113,-460.0,0.00019178,2]
[369686813,1751699440123,-460.0,0.00019178,2]
[369686814,1751699440132,-460.0,0.00019178,2]
[369686815,1751699440142,-460.0,0.00019178,2]
[369686816,1751699440152,-460.0,0.00019178,2]
[369686817,1751699440162,-460.0,0.00019178,2]
[369686819,1751699440175,-460.0,0.00019178,2]
[369686820,1751699440184,-460.0,0.00019178,2]
[369686821,1751699440201,-460.0,0.00019178,2]
[369686822,1751699440217,-460.0,0.00019178,2]
[369686823,1751699440227,-460.0,0.00019178,2]
[369686824,1751699440237,-460.0,0.00019178,2]
[369686825,1751699440246,-460.0,0.00019178,2]
[369686826,1751699440256,-460.0,0.00019178,2]
[369686827,1751699440266,-460.0,0.00019178,2]
[369686828,1751699440276,-460.0,0.00019178,2]
[369686829,1751699440354,-460.0,0.00019178,2]
[369686830,1751699440364,-460.0,0.00019178,2]
[369686831,1751699440374,-460.0,0.00019178,2]
[369686832,1751699440384,-460.0,0.00019178,2]
[369686833,1751699440393,-460.0,0.00019178,2]
[369686834,1751699440402,-460.0,0.00019178,2]
[369686835,1751699440412,-461.21012054,0.00019178,2]
[369686836,1751699440421,-460.0,0.00019178,2]
[369686837,1751699440430,-460.0,0.00019178,2]
[369686838,1751699440440,-460.0,0.00019178,2]
[369686839,1751699440449,-460.0,0.00019178,2]
[369686840,1751699440458,-460.0,0.00019178,2]
[369686841,1751699440467,-460.0,0.00019178,2]
[369686842,1751699440476,-460.74220114,0.00019178,2]
[369686843,1751699440486,-460.0,0.00019178,2]